Cogmind - Beta 12 @@@ ROGUE MODE // 2023.09.25 @ 19:46:37 Player: Kitarik02 Result: Destroyed by G-47 Trooper with Particle Gun Performance ------------- Evolutions (1) 500 Regions Visited (2) 400 Robots Destroyed (61) 305 Value Destroyed (1819) 1819 Prototype IDs (2) 40 Alien Tech Used (0) 0 Bonus (146) 146 TOTAL SCORE: 3210 Bonus ------- High Alert Combat Kills 146 Cogmind --------- Core Integrity 0/400 Matter 253/300 Energy 96/100 System Corruption 5% Temperature Warm (131) Movement Core (250) Ox4 Location -9/Materials Parts ------- > --- POWER (2) -------- (None) > --- PROPULSION (3) --- (None) > --- UTILITY (2) ------ Medium Storage Unit > --- WEAPON (2) ------- Beam Rifle > --- INVENTORY (10) --- Aluminum Leg Improved Heat Sink Improved Light Armor Plating Light Assault Rifle Shotgun Improved Light Cannon Mini Grenade Launcher Datajack Peak State ------------ > --- POWER ------------ Ion Engine Light Ion Engine > --- PROPULSION ------- Improved Aluminum Leg Improved Aluminum Leg Improved Aluminum Leg > --- UTILITY ---------- Medium Storage Unit Shield Generator > --- WEAPON ----------- Small Laser Particle Gun > --- INVENTORY -------- Aluminum Leg Aluminum Leg Aluminum Leg Aluminum Leg Improved Aluminum Leg Shield Generator EM Pulse Gun EM Pulse Gun Mini Grenade Launcher [Rating: 15] Favorites ----------- Power Light Ion Engine Engine Light Ion Engine Propulsion Aluminum Leg Treads Light Treads Leg Aluminum Leg Wheel Wheel Utility Medium Storage Unit Device Shield Generator Storage Medium Storage Unit Protection Improved Light Armor Plating Weapon Shotgun Energy Gun Particle Gun Energy Cannon Beam Cannon Ballistic Gun Shotgun Build | -11 -10 -9 ------- Run | Jun Mat Mat Slots Evolved 2 | . . 2 Power 1 | . . 1 Propulsion 1 | . . 1 Utility . | . . . Weapon . | . . . Parts Attached 52 | 6 16 30 Power 10 | 1 3 6 Engine 10 | 1 3 6 Core . | . . . Reactor . | . . . Propulsion 19 | 2 6 11 Treads 2 | . 2 . Leg 15 | . 4 11 Wheel 2 | 2 . . Hover . | . . . Flight . | . . . Utility 8 | 1 4 3 Device 4 | . 3 1 Storage 2 | 1 1 . Processor . | . . . Hackware . | . . . Protection 2 | . . 2 Artifact . | . . . Weapon 15 | 2 3 10 Energy Gun 8 | 1 2 5 Energy Cannon 1 | . . 1 Ballistic Gun 6 | 1 1 4 Ballistic Cannon . | . . . Launcher . | . . . Special Weapon . | . . . Impact Weapon . | . . . Slashing Weapon . | . . . Piercing Weapon . | . . . Special Melee Weapon . | . . . Unidentified Prototypes . | . . . Parts Lost 16 | . 4 12 Power 5 | . 1 4 Propulsion 7 | . 3 4 Utility 2 | . . 2 Weapon 2 | . . 2 Highest Loss Streak 6 | . 2 6 To Critical Strikes . | . . . Average Slot Usage (%) 96 | . 98 96 Engine 17 | . 13 19 Leg 29 | . 23 32 Device 8 | . 13 5 Storage 12 | . 14 11 Protection 3 | . . 5 Energy Gun 15 | . 24 11 Ballistic Gun 8 | . 3 10 Naked Turns . | . . . Heaviest Build 36 | 10 19 36 Greatest Support 40 | 26 40 39 Greatest Overweight (x) 3 | 3 . 2 Average Overweight (x) . | . . . Largest Inventory Capacity 10 | 8 10 10 Average Capacity 9 | 7 8 10 Most Carried 10 | 6 10 10 Average Carried 8 | 2 6 9 Final Capacity 10 | 8 10 10 Final Carried 10 | 6 10 8 Class Distribution -------------------- 58% | Mutant 41% | Scavenger-Mutant Dominant Class ---------------- Mutant | -10/Materials Mutant | -9/Materials Resources | -11 -10 -9 ----------- Run | Jun Mat Mat Matter Collected 1249 | 181 294 774 Remotely . | . . . Salvage Created 2212 | . 501 1711 Parts 142 | . 32 110 Haulers Intercepted 1 | . . 1 Recyclers Shooed 4 | . 1 3 Parts Field Recycled . | . . . Retrieved Matter . | . . . Parts Self-Destructed . | . . . Prevented . | . . . Kills | -11 -10 -9 ------- Run | Jun Mat Mat Combat Hostiles Destroyed 50 | . 9 41 Guns 49 | . 9 40 AOE 1 | . . 1 Classes Destroyed 8 | . 4 4 Worker 3 | . 1 2 Builder 1 | . . 1 Tunneler 1 | . 1 . Hauler 1 | . . 1 Watcher 6 | . 2 4 Swarmer 7 | . . 7 Grunt 33 | . 9 24 Sentry 10 | . . 10 Best Kill Streak 5 | . 3 5 Combat Bots Only 5 | . 3 5 Max Kills in Single Turn 2 | . 1 2 Gunslinging 1 | . . 1 Exploded 1 | . . 1 Melee . | . . . Uniques/NPCs Destroyed . | . . . Combat | -11 -10 -9 -------- Run | Jun Mat Mat Damage Taken 3363 | . 832 2531 Core 518 | . 105 413 Absorbed by Shields 289 | . . 289 Regen/Repaired (Parts) 33 | . 33 . Core Remaining (%) 79 | 100 58 . Volleys Fired 192 | . 53 139 Largest 2 | . 2 2 Hottest 105 | . 105 105 Shots Fired 373 | . 106 267 Gun 373 | . 106 267 Cannon . | . . . Launcher . | . . . Special . | . . . Kinetic 184 | . 62 122 Thermal 137 | . 44 93 Explosive . | . . . Electromagnetic 52 | . . 52 Robot Hit Streak 16 | . 8 16 Robot Miss Streak 6 | . 6 6 Penetration Max . | . . . Secondary Targets 2 | . . 2 Max Gunslinging Chain 1 | . . 1 Shots Hit Robots 240 | . 64 176 Core Hits 120 | . 29 91 Critical Kills 2 | . 1 1 Critical Parts Destroyed . | . . . Critical Strikes 7 | . 1 6 Burn 4 | . . 4 Destroy 3 | . 1 2 Melee Attacks . | . . . Impact . | . . . Slashing . | . . . Piercing . | . . . Sneak Attacks . | . . . Combat Hostiles . | . . . Follow-up Attacks . | . . . Damage Inflicted 3567 | . 697 2870 Guns 3369 | . 692 2677 Cannons . | . . . Explosions 95 | . . 95 Melee . | . . . Ramming 103 | . 5 98 Kinetic 1949 | . 371 1578 Thermal 1183 | . 321 862 Explosive . | . . . Electromagnetic 332 | . . 332 Impact . | . . . Slashing . | . . . Piercing . | . . . Highest Corruption 5 | . . 5 Average Corruption 5 | . . 5 Corruption Purged . | . . . Corruption Blocked . | . . . Effects 42 | . . 42 Message Errors 10 | . . 10 Matter Fused 13 | . . 13 Heat Flow Errors 5 | . . 5 Energy Discharges 3 | . . 3 Parts Rejected 2 | . . 2 Parts Fused 1 | . . 1 Data Loss (minor) 4 | . . 4 Data Loss (major) 2 | . . 2 Weapon Failures 2 | . . 2 Overload Shots . | . . . Overflow Damage . | . . . Projectiles . | . . . Explosions . | . . . Melee . | . . . Knockbacks 2 | . . 2 Impact 2 | . . 2 Kinetic . | . . . Secondary . | . . . Self-Inflicted Damage 33 | . . 33 Shots 1 | . . 1 Rammed . | . . . Targets Rammed 17 | . 3 14 Kicked 17 | . 3 14 Crushed . | . . . Highest Temperature 470 | . 256 470 Average Temperature 114 | . 80 122 Received Heat Transfer 1339 | . 438 901 Effects 7 | . 1 6 Shutdowns 4 | . . 4 Energy Bleed 2 | . 1 1 Damage (minor) 1 | . . 1 Siege Activations . | . . . Robots Corrupted . | . . . Combat Hostiles . | . . . Parts Fried . | . . . Impact Corruptions . | . . . Robots Melted . | . . . Combat Hostiles . | . . . Parts Melted 5 | . . 5 Heat Transferred 3094 | . 748 2346 Parts Sabotaged . | . . . Parts Stolen . | . . . Parts Stripped . | . . . Power Chain Reactions 2 | . . 2 Missiles Intercepted . | . . . Alert | -11 -10 -9 ------- Run | Jun Mat Mat Peak Influence 680 | . 236 680 Initial 19 | . . 19 Average 242 | . 71 341 Maximum Alert Level 2 | . 1 2 Low Security (%) 41 | 100 82 17 Level 1 37 | . 17 49 Level 2 20 | . . 32 Level 3 . | . . . Level 4 . | . . . Level 5 . | . . . High Security . | . . . Max Security . | . . . Squads Dispatched 10 | . 2 8 Investigation 3 | . . 3 Extermination . | . . . Reinforcement 6 | . 2 4 Assault 1 | . . 1 Garrison . | . . . Intercept . | . . . Searches Triggered . | . . . Construction Impeded 1 | . . 1 Haulers Reinforced . | . . . Active Scanning Responses . | . . . Cargo Convoy Interrupts . | . . . Stealth | -11 -10 -9 --------- Run | Jun Mat Mat Distress Signals 9 | . 3 6 Communications Jammed . | . . . Distress Signals . | . . . Times Spotted 80 | . 18 62 Peak Tracking Total 8 | . 6 8 Tactical Retreats . | . . . Traps | -11 -10 -9 ------- Run | Jun Mat Mat Traps Triggered 3 | . 2 1 Indirectly . | . . . Trap Hack Attempts . | . . . Triggered . | . . . Disarmed . | . . . Reprogrammed . | . . . Reused . | . . . Traps Extracted . | . . . Installed . | . . . Triggered . | . . . Machines | -11 -10 -9 ---------- Run | Jun Mat Mat Machines Disabled 2 | . . 2 Max in Single Turn 1 | . . 1 Machines Repaired . | . . . Machines Sabotaged . | . . . Overloaded Fab Kills . | . . . Hacking | -11 -10 -9 --------- Run | Jun Mat Mat Machines Accessed 17 | . 9 8 Terminals 12 | . 6 6 Fabricators . | . . . Repair Stations 1 | . 1 . Recycling Units 3 | . 2 1 Scanalyzers 1 | . . 1 Garrison Access . | . . . Total Hacks 60 | . 29 31 Successful 35 | . 20 15 Failed 25 | . 9 16 Catastrophic 3 | . 2 1 Database Lockouts . | . . . Manual . | . . . Terminals 48 | . 22 26 Fabricators . | . . . Repair Stations 2 | . 2 . Recycling Units 7 | . 5 2 Scanalyzers 3 | . . 3 Garrison Access . | . . . Terminal Hacks 25 | . 14 11 Record 12 | . 5 7 Robot Analysis 1 | . . 1 Prototype ID Bank 1 | . 1 . Emergency Access Points 1 | . . 1 Alert Level 6 | . 4 2 Locate Traps 2 | . 2 . Maintenance Status 1 | . 1 . Zone Layout 1 | . 1 . Fabricator Hacks . | . . . Repair Station Hacks 2 | . 2 . Scan Component 1 | . 1 . Repair 1 | . 1 . Recycling Unit Hacks 6 | . 4 2 Report Inventory 3 | . 2 1 Retrieve Components 3 | . 2 1 Scanalyzer 2 | . . 2 Insert Component 1 | . . 1 Analyze 1 | . . 1 Garrison Access Hacks . | . . . Unauthorized Hacks . | . . . Terminals . | . . . Fabricators . | . . . Repair Stations . | . . . Recycling Units . | . . . Scanalyzers . | . . . Garrison Access . | . . . Data Cores Recovered . | . . . Used . | . . . Hacking Detections 15 | . 9 6 Full Trace Events 5 | . 3 2 Feedback Events . | . . . Feedback Blocked . | . . . Robot Schematics Acquired . | . . . Robots Built . | . . . Authchips . | . . . Time . | . . . Total Robot Build Rating . | . . . Part Schematics Acquired 1 | . . 1 Parts Built . | . . . Authchips . | . . . Time . | . . . Total Part Build Rating . | . . . Parts Repaired 1 | . 1 . Time 26 | . 26 . Parts Recycled . | . . . Recycled Matter . | . . . Retrieved Matter . | . . . Retrieved Components 19 | . 10 9 Parts Scanalyzed 1 | . . 1 Part Schematics Acquired 1 | . . 1 Parts Damaged . | . . . Bothacking | -11 -10 -9 ------------ Run | Jun Mat Mat Used RIF Installer . | . . . Robots Hacked . | . . . Non-combat . | . . . Combat . | . . . Robot Hacks Applied . | . . . Relay Couplers Released . | . . . Fabnet Peak Effective % . | . . . Robots Rewired . | . . . Allies Hacked . | . . . Hacks Repelled . | . . . Allies | -11 -10 -9 -------- Run | Jun Mat Mat Total Allies . | . . . Largest Group . | . . . Highest-Rated Group . | . . . Highest-Rated Ally . | . . . Total Orders . | . . . Ally Attacks . | . . . Total Damage . | . . . Kills . | . . . Allies Corrupted . | . . . Allies Melted . | . . . Intel | -11 -10 -9 ------- Run | Jun Mat Mat Robot Analysis Total 1 | . . 1 Derelict Logs Recovered . | . . . Drone Launches . | . . . Drone Recoveries . | . . . Exploration | -11 -10 -9 ------------- Run | Jun Mat Mat Turns Passed 3414 | 63 1176 2175 Spaces Moved 1971 | 44 775 1152 Core 17 | 17 . . Treads 9 | . 9 . Legs 1876 | . 724 1152 Wheels 69 | 27 42 . Hover . | . . . Flight . | . . . Fastest Speed 50 | 50 90 120 Average Speed 127 | 102 118 134 Slowest Speed 260 | 200 160 260 Overloaded Moves . | . . . Propulsion Burnouts . | . . . Robots Hopped . | . . . Cave-ins Triggered 1 | . . 1 Exploration Rate (%) 61 | 5 95 84 Regions Visited 2 Branch Regions . Pre-discovered Areas . | . . . Known Exits Taken . | . . . Unknown Exits Taken 2 | 1 1 . Scrap Searched . | . . . Spaces Dug . | . . . Terrain Destroyed 4 | . . 4 Melee . | . . . Projectile . | . . . AOE 4 | . . 4 Terrain Rammed . | . . . Walls Destroyed . | . . . Machines Disabled . | . . . Actions | -11 -10 -9 --------- Run | Jun Mat Mat Total 2502 | 61 935 1506 Wait 186 | . 55 131 Move 1969 | 43 774 1152 Hop . | . . . Pick Up 56 | 12 20 24 Fast Attach 3 | . 2 1 Attach 26 | 6 6 14 Detach 1 | . 1 . Swap 23 | . 8 15 Drop 29 | . 13 16 Fire 192 | . 53 139 Melee . | . . . Ram . | . . . Kick 17 | . 3 14 Crush . | . . . Escape Stasis . | . . . Rewire . | . . . Trap . | . . . Miscellaneous . | . . . Route ------- -11/Junkyard -10/Materials (discovered 4 exits: *Mat x3 / [*Min]) -9/Materials (discovered 4 exits: [*Mat x2] / [*Min x2]) History --------- Turn | Location | Event 18 | -11/Junkyard | Discovered new exit (range 15) 64 | -11/Junkyard | Entered Materials 357 | -10/Materials | Discovered new exit (range 16) 552 | -10/Materials | Build established: Scavenger-Mutant 601 | -10/Materials | Discovered new exit (range 6) 789 | -10/Materials | Repaired Lgt. Ion Engine 827 | -10/Materials | Discovered new exit (range 11) 1150 | -10/Materials | Build established: Mutant 1195 | -10/Materials | Discovered new exit (range 16) 1240 | -10/Materials | Entered another Materials area 1240 | -9/Materials | Evolved 2 slots: Power x1, Propulsion x1 1368 | -9/Materials | Discovered new exit (range 6) 1695 | -9/Materials | Crushed by falling debris 1819 | -9/Materials | Discovered new exit (range 9) 2406 | -9/Materials | Discovered new exit (range 15) 2934 | -9/Materials | Discovered new exit (range 7) 3074 | -9/Materials | Build established: Scavenger-Mutant 3240 | -9/Materials | First assault squad dispatched 3388 | -9/Materials | Core integrity fell below 50% 3406 | -9/Materials | Core integrity fell below 20% 3415 | -9/Materials | Destroyed by G-47 Trooper with Particle Gun Last Messages --------------- 03398_ #TGX/MX,AUOA8B1BDCBGT2SAP>T=8JJ&6R>4I%: 03398_ Aluminum Leg destroyed. 03399_ G-34 Mercenary destroyed. 03400_ K-01 Serf collects debris. 03400_ R-06 Scavenger collects Imp. Ion Engine. 03401_ Acquired 31 matter. 03402_ K-01 Serf destroyed. 03403_ R-06 Scavenger collects Lgt. Ion Engine. 03404_ R-06 Scavenger collects Sml. Matter Pod. 03406_ K-01 Serf collects debris. 03407_ R-06 Scavenger collects Sml. Laser. 03407_ Hrd. Medium Armor Plating destroyed. 03407_ Beam Cannon severed. 03410_ Imp. Ion Engine destroyed. 03410_ R-06 Scavenger collects Wheel. 03411_ K-01 Serf collects debris. 03412_ Aluminum Leg severed. 03414_ R-06 Scavenger collects Lrg. Battery. 03415_ Hvy. Assault Rifle severed. 03415_ K-01 Serf collects debris. Map ----- +----------------------------------------------------+ | #####/## #??????????????????? | | # ## #??????????????????? | | # "" # #??????????????????? | | # "" ]#!! !!!#??????????????????? | | # "T #!!!!!!#??????????????????? | | # "" ########??????????????????? | | # "" #?????????????#########???? | | # #?????????????# #???? | | #######?????????????# #???? | | #?????????????????# #???? | | ################### T #???? | | #???? | | ################### #???? | | #?????????????????# % #???? | | +###?????????????????###% %###???? | | ????????????????????# #?????? | | """ ??????????????????# #?????? | | """"" #?????????????#### #?????? | | """" #????????###### ## ##????? | | #????????#/// # k #????? | | ##########/// # #????? | | ! + +// "/%g% #????? | | ################ #= gr #????? | | ???????????????# "T" # rb% #????? | | ???????????????# ###l###????? | | ???????????????########?#@#??????? | | ????????????????????????#=#??????? | | ????????????????????????#=#??????? | | ????????????????????????# #??????? | | ????????????????????????# #??????? | | ????????????????????????# #??????? | | ????????????????????????# #??????? | | ????????????????????????# #??????? | | ???????????????????????? ??????? | | ???????????????????????? ??????? | | ???????????????????????? ??????? | | #??????????????????????? ??????? | | #??????????????????????? ??????? | | #??????????????????????? ??????? | | #??????????????????????? ??????? | | #??????????????????????? ??????? | | #????????????????????????????????? | | #????????????????????????????????? | | #????????????????????????????????? | | #????????????????????????????????? | | #????????????????????????????????? | | #????????????????????????????????? | | ?????????????????????????????????? | | ?????????????????????????????????? | | ?????????????????????????????????? | +----------------------------------------------------+ Best States ------------- Heat Dissipation 28 Energy Generation 17 Energy Capacity 415 Matter Stores 300 Matter Capacity 300 Sight Range 16 Terrain Scan Density 10 Armor Coverage 225 Evasion (%) 55 Recoil Reduction 2 Item Schematics ----------------- Aluminum Leg | -9/Materials | Scanalyzed Robot Schematics ------------------ None Fabricated ------------ Nothing Alien Tech Used ----------------- None Achievements -------------- Significant Disruption Challenges ------------ None Game ------ Seed CatalystSmartbombAirjet Manual? 0 Play Time 00:38:45 Cumulative 5.9 hours Start 2023.09.25 @ 17:23:32 End 2023.09.25 @ 19:46:37 Sessions 1 Manual Loads 0 Difficulty Rogue Special Mode None Game No. 22 Rogue 22 Adventurer 0 Explorer 0 Win Type - Total 0 Types 0/0/0/0/0/0/0/0/0 Lore% 7 Gallery% 10 Achievement% 11 Wizard Run 0 Options --------- ASCII 0 Keyboard 0 Movement Mouse Keybinds 0 Fullscreen 2 Font 12/Smallcaps Map View 83x54 Tactical HUD 1 Map Filters NONE Filters NONE Steam 1 RUN: 46f9e6af-a8c2-46fe-aecd-a27a930e3354